[Event "70th RUS-ch Women Higher League 2020"]
[Site "Sochi"]
[Date "2020.10.12"]
[Round "5.7"]
[White "Paramzina, Anastasya"]
[Black "Shafigullina, Zarina"]
[Result "1/2-1/2"]
[ECO "B90"]
[WhiteElo "2237"]
[BlackElo "2296"]
[Annotator "ChessBase"]
[PlyCount "139"]
[EventDate "2020.10.08"]
[EventType "swiss"]
[EventCountry "RUS"]
[SourceTitle "playchess.com"]
[Source "ChessBase"]
[SourceQuality "1"]
[TimeControl "40/5400+30:1800+30"]

1. e4 {[%emt 0:02:23]} c5 {[%emt 0:00:00]} 2. Nc3 {[%emt 0:00:04]} d6 {[%emt 0:00:00]} 3. Nf3 {[%emt 0:00:14]} Nf6 {[%emt 0:00:05]} 4. d4 {[%emt 0:00:04]} cxd4 {[%emt 0:00:05]} 5. Nxd4 {[%emt 0:00:03]} a6 {[%emt 0:00:06]} 6. Nb3 {[%emt 0:00:06]} Nbd7 {[%emt 0:00:24]} 7. a4 {[%emt 0:01:01]} b6 {[%emt 0:00:27]} 8. g4 {[%emt 0:00:23]} Bb7 {[%emt 0:00:48]} 9. Bg2 {[%emt 0:00:09]} g6 {[%emt 0:00:23]} 10. O-O {[%emt 0:02:36]} Bg7 {[%emt 0:01:58]} 11. e5 {[%emt 0:02:43]} Bxg2 {[%emt 0:03:21]} 12. exf6 {[%emt 0:00:18]} Bxf1 {[%emt 0:00:06]} 13. fxg7 {[%emt 0:00:03]} Rg8 {[%emt 0:00:05]} 14. Kxf1 {[%emt 0:04:59]} Rxg7 {[%emt 0:01:28]} 15. Qd4 {[%emt 0:03:00]} Rg8 {[%emt 0:01:20]} 16. Be3 {[%emt 0:11:47]} Rb8 {[%emt 0:12:17]} 17. a5 {[%emt 0:19:32]} b5 {[%emt 0:02:27]} 18. Nd5 {[%emt 0:04:37]} Ne5 {[%emt 0:13:57]} 19. Qa7 {[%emt 0:08:19]} Rc8 {[%emt 0:12:18]} 20. Qxa6 {[%emt 0:12:02]} Rxc2 {[%emt 0:01:22]} 21. Qxb5+ {[%emt 0:00:27]} Qd7 {[%emt 0:00:13]} 22. Nd4 {[%emt 0:01:38]} Qxb5+ {[%emt 0:03:59]} 23. Nxb5 {[%emt 0:00:37]} Rxb2 {[%emt 0:31:57]} 24. a6 {[%emt 0:02:20]} Kd7 {[%emt 0:02:50]} 25. Nb6+ {[%emt 0:00:29]} Kc6 {[%emt 0:02:38]} 26. Na7+ {[%emt 0:00:11]} Kc7 {[%emt 0:00:15]} 27. Rc1+ {[%emt 0:02:16]} Kb8 {[%emt 0:00:14]} 28. Nac8 {[%emt 0:01:22]} Ra2 {[%emt 0:01:55]} 29. a7+ {[%emt 0:01:28]} Kb7 {[%emt 0:01:01]} 30. Rb1 {[%emt 0:07:28]} Nc6 {[%emt 0:03:24]} 31. a8=Q+ {[%emt 0:01:14]} Rxa8 {[%emt 0:00:25]} 32. Nxa8+ {[%emt 0:00:06]} Kxc8 {[%emt 0:00:31]} 33. Nb6+ {[%emt 0:00:14]} Kc7 {[%emt 0:00:20]} 34. Nd5+ {[%emt 0:01:06]} Kd7 {[%emt 0:01:26]} 35. Rb7+ {[%emt 0:03:28]} Ke6 {[%emt 0:00:21]} 36. Nf4+ {[%emt 0:00:39]} Kf6 {[%emt 0:01:40]} 37. Rc7 {[%emt 0:03:10]} Ne5 {[%emt 0:00:15]} 38. h3 {[%emt 0:00:04]} e6 {[%emt 0:01:28]} 39. Ne2 {[%emt 0:01:47]} g5 {[%emt 0:00:54]} 40. Ng3 {[%emt 0:00:00]} Nf3 {[%emt 0:00:00]} 41. Ne4+ {[%emt 0:10:40]} Ke5 {[%emt 0:03:31]} 42. Nd2 {[%emt 0:01:31]} Nxd2+ {[%emt 0:01:10]} 43. Bxd2 {[%emt 0:00:05]} Kf6 {[%emt 0:00:08]} 44. Rd7 {[%emt 0:01:40]} d5 {[%emt 0:00:08]} 45. Kg2 {[%emt 0:01:56]} Kg6 {[%emt 0:01:00]} 46. Kg3 {[%emt 0:00:50]} Rb8 {[%emt 0:04:39]} 47. Be3 h6 48. h4 {[%emt 0:05:01]} gxh4+ {[%emt 0:02:01]} 49. Kxh4 {[%emt 0:00:04]} Rh8 {[%emt 0:03:05]} 50. Ra7 {[%emt 0:03:59]} Rc8 {[%emt 0:06:33]} 51. Ra4 {[%emt 0:01:47]} Re8 {[%emt 0:05:25]} 52. Ra6 {[%emt 0:02:51]} f5 {[%emt 0:07:49]} 53. gxf5+ {[%emt 0:07:22]} Kxf5 {[%emt 0:00:04]} 54. Bxh6 {[%emt 0:01:39]} Rh8 {[%emt 0:00:06]} 55. Kh5 {[%emt 0:00:03]} Rg8 {[%emt 0:00:31]} 56. Ra7 {[%emt 0:01:11]} e5 {[%emt 0:01:59]} 57. Rf7+ {[%emt 0:00:31]} Ke6 {[%emt 0:00:41]} 58. Rf3 {[%emt 0:00:11]} Rg2 {[%emt 0:00:15]} 59. Bg5 {[%emt 0:00:34]} d4 {[%emt 0:00:35]} 60. Rf6+ {[%emt 0:01:25]} Kd5 {[%emt 0:00:08]} 61. f3 {[%emt 0:00:19]} d3 {[%emt 0:01:03]} 62. Rf8 {[%emt 0:00:19]} Ke6 {[%emt 0:00:33]} 63. Kg6 {[%emt 0:00:37]} Rg3 {[%emt 0:00:12]} 64. Re8+ {[%emt 0:01:00]} Kd5 {[%emt 0:00:19]} 65. Rf8 {[%emt 0:01:06]} d2 {[%emt 0:00:58]} 66. Rd8+ {[%emt 0:01:05]} Ke6 {[%emt 0:00:07]} 67. Rxd2 {[%emt 0:00:37]} Rxf3 {[%emt 0:00:04]} 68. Re2 {[%emt 0:00:26]} Rf1 {[%emt 0:00:56]} 69. Re3 {[%emt 0:00:14]} Kd5 {[%emt 0:00:21]} 70. Re2 1/2-1/2

[Event "70th RUS-ch Women Higher League 2020"]
[Site "Sochi"]
[Date "2020.10.12"]
[Round "5.11"]
[White "Lysenko, Margarita"]
[Black "Belenkaya, Dina"]
[Result "0-1"]
[ECO "D20"]
[WhiteElo "2239"]
[BlackElo "2297"]
[Annotator "ChessBase"]
[PlyCount "138"]
[EventDate "2020.10.08"]
[EventType "swiss"]
[EventCountry "RUS"]
[SourceTitle "playchess.com"]
[Source "ChessBase"]
[SourceQuality "1"]
[TimeControl "40/5400+30:1800+30"]

1. d4 {[%emt 0:00:00]} d5 {[%emt 0:00:00]} 2. c4 {[%emt 0:00:00]} dxc4 {[%emt 0:00:00]} 3. e4 {[%emt 0:00:06]} Nc6 {[%emt 0:00:13]} 4. Nf3 {[%emt 0:01:35]} Bg4 {[%emt 0:01:12]} 5. d5 {[%emt 0:00:39]} Ne5 {[%emt 0:00:30]} 6. Bf4 {[%emt 0:00:54]} Ng6 {[%emt 0:01:15]} 7. Be3 {[%emt 0:00:13]} Nf6 {[%emt 0:06:26]} 8. Nc3 {[%emt 0:00:21]} e6 {[%emt 0:00:56]} 9. Qa4+ {[%emt 0:17:37]} Qd7 {[%emt 0:02:12]} 10. Qxd7+ {[%emt 0:01:49]} Kxd7 {[%emt 0:00:43]} 11. dxe6+ {[%emt 0:09:13]} Bxe6 {[%emt 0:04:51]} 12. O-O-O+ {[%emt 0:01:21]} Ke8 {[%emt 0:02:00]} 13. Ng5 {[%emt 0:09:33]} Ng4 {[%emt 0:07:56]} 14. Nxe6 {[%emt 0:01:35]} fxe6 {[%emt 0:00:16]} 15. Bxc4 {[%emt 0:03:48]} Nxe3 {[%emt 0:00:54]} 16. fxe3 {[%emt 0:00:09]} Ke7 {[%emt 0:02:36]} 17. Kd2 {[%emt 0:07:46]} Ne5 {[%emt 0:01:13]} 18. Bb3 {[%emt 0:00:22]} Rd8+ {[%emt 0:13:38]} 19. Ke2 {[%emt 0:00:11]} Rxd1 {[%emt 0:01:00]} 20. Nxd1 {[%emt 0:10:13]} g6 {[%emt 0:01:37]} 21. Nf2 {[%emt 0:00:53]} Bg7 {[%emt 0:00:52]} 22. Nh3 {[%emt 0:10:06]} c5 {[%emt 0:04:24]} 23. a4 {[%emt 0:07:12]} c4 {[%emt 0:02:14]} 24. Ba2 {[%emt 0:01:37]} Rc8 {[%emt 0:01:14]} 25. Rc1 {[%emt 0:00:54]} Rc6 {[%emt 0:02:10]} 26. Nf2 {[%emt 0:05:28]} a6 {[%emt 0:12:12]} 27. Rc2 {[%emt 0:01:36]} Kd7 {[%emt 0:10:32]} 28. b3 {[%emt 0:00:49]} cxb3 {[%emt 0:11:10]} 29. Bxb3 {[%emt 0:00:10]} Rb6 {[%emt 0:00:41]} 30. Rd2+ {[%emt 0:04:57]} Ke7 {[%emt 0:00:33]} 31. Bd1 {[%emt 0:00:40]} Rb1 {[%emt 0:03:04]} 32. Rc2 {[%emt 0:01:42]} Nc6 {[%emt 0:04:29]} 33. Nd3 {[%emt 0:00:21]} Kd6 {[%emt 0:00:33]} 34. Rc1 {[%emt 0:01:14]} Rb6 {[%emt 0:02:30]} 35. Bc2 {[%emt 0:00:48]} Na5 {[%emt 0:00:29]} 36. Rd1 {[%emt 0:01:13]} Ke7 {[%emt 0:00:20]} 37. Rb1 {[%emt 0:00:31]} Rc6 {[%emt 0:00:20]} 38. Bd1 {[%emt 0:00:36]} Bc3 {[%emt 0:00:43]} 39. h4 {[%emt 0:00:36]} Kd6 {[%emt 0:00:42]} 40. g4 {[%emt 0:00:00]} b6 {[%emt 0:00:00]} 41. Rc1 {[%emt 0:10:29]} b5 {[%emt 0:04:34]} 42. axb5 {[%emt 0:00:13]} axb5 {[%emt 0:00:04]} 43. Rb1 {[%emt 0:00:53]} Rb6 {[%emt 0:01:37]} 44. Ba4 {[%emt 0:04:49]} b4 {[%emt 0:01:11]} 45. Rd1 {[%emt 0:04:54]} Ke7 {[%emt 0:00:47]} 46. e5 {[%emt 0:06:01]} Nc4 {[%emt 0:12:12]} 47. Bb3 {[%emt 0:00:40]} Rc6 {[%emt 0:04:48]} 48. Rc1 {[%emt 0:02:24]} Na5 {[%emt 0:01:00]} 49. Ba4 {[%emt 0:00:50]} Rc4 {[%emt 0:02:34]} 50. Kf3 {[%emt 0:00:10]} b3 {[%emt 0:02:50]} 51. Bb5 {[%emt 0:00:11]} Rc7 {[%emt 0:00:46]} 52. Nb2 {[%emt 0:04:11]} Kd8 {[%emt 0:02:15]} 53. Na4 {[%emt 0:01:07]} Bxe5 {[%emt 0:00:40]} 54. Rxc7 {[%emt 0:00:45]} Kxc7 {[%emt 0:00:03]} 55. Bd3 {[%emt 0:00:09]} Kc6 {[%emt 0:00:39]} 56. h5 {[%emt 0:00:41]} gxh5 {[%emt 0:00:27]} 57. gxh5 {[%emt 0:00:13]} h6 {[%emt 0:00:22]} 58. Ke2 {[%emt 0:00:16]} b2 {[%emt 0:02:16]} 59. Kd1 {[%emt 0:01:10]} Nc4 {[%emt 0:00:12]} 60. Ke2 {[%emt 0:00:30]} Na3 {[%emt 0:00:22]} 61. Nxb2 {[%emt 0:00:20]} Bxb2 {[%emt 0:00:06]} 62. Kf3 {[%emt 0:00:29]} Nb5 {[%emt 0:00:28]} 63. Bc4 {[%emt 0:00:23]} Nc7 {[%emt 0:00:23]} 64. Ke4 {[%emt 0:00:10]} Kd6 {[%emt 0:00:08]} 65. Bb3 {[%emt 0:00:22]} Ne8 {[%emt 0:00:26]} 66. Bd1 {[%emt 0:00:08]} Nf6+ {[%emt 0:00:08]} 67. Kd3 {[%emt 0:00:23]} Ke5 {[%emt 0:00:08]} 68. Be2 {[%emt 0:00:22]} Bc1 {[%emt 0:00:21]} 69. Bd1 {[%emt 0:00:08]} Nd5 {[%emt 0:00:53]} 0-1

[Event "70th RUS-ch Women Higher League 2020"]
[Site "Sochi"]
[Date "2020.10.12"]
[Round "5.12"]
[White "Bykova, Anastasia"]
[Black "Semenova, Elena"]
[Result "0-1"]
[ECO "A81"]
[WhiteElo "2215"]
[BlackElo "2284"]
[Annotator "NA"]
[PlyCount "114"]
[EventDate "2020.10.08"]
[EventType "swiss"]
[EventCountry "RUS"]
[SourceTitle "playchess.com"]
[Source "ChessBase"]
[SourceQuality "1"]
[TimeControl "40/5400+30:1800+30"]

1. d4 {[%emt 0:00:00]} f5 {[%emt 0:00:00]} 2. g3 {[%emt 0:00:00]} Nf6 {[%emt 0:00:00]} 3. Bg2 {[%emt 0:00:00]} d6 {[%emt 0:00:44]} 4. d5 {[%emt 0:00:39]} c6 {[%emt 0:00:20]} 5. Nc3 {[%emt 0:00:31]} e5 {[%emt 0:00:35]} 6. dxe6 {[%emt 0:00:13] A81: Dutch Defence: 2 g3.} Bxe6 {[%emt 0:00:12]} 7. e4 {[%emt 0:01:52]} fxe4 {[%emt 0:11:00]} 8. Nxe4 {[%emt 0:03:07] [#]} Nxe4 $146 {[%emt 0:00:33]} ({Predecessor:} 8... Be7 9. Ng5 Bd5 10. Bxd5 Qa5+ 11. Bd2 Qxd5 12. Qf3 O-O 13. Qxd5+ Nxd5 14. N1h3 Na6 {½-½ (32) Weber,J (2236)-Wagener,A (2278) Differdingen 2007}) 9. Bxe4 {[%emt 0:00:08]} d5 {[%emt 0:02:38]} 10. Bg2 {[%emt 0:02:47]} Bc5 {[%emt 0:02:41]} 11. Qe2 {[%emt 0:13:28]} Qe7 {[%emt 0:01:26]} 12. Bg5 {[%emt 0:02:55]} Qxg5 {[%emt 0:04:45]} 13. Qxe6+ {[%emt 0:00:05]} Qe7 {[%emt 0:00:08]} 14. Qxe7+ {[%emt 0:00:11]} Bxe7 {[%emt 0:04:40]} 15. f4 {[%emt 0:01:06]} Nd7 {[%emt 0:04:16]} 16. O-O-O {[%emt 0:02:52]} O-O-O {[%emt 0:06:49]} 17. Nf3 {[%emt 0:00:22]} Rhe8 {[%emt 0:06:28]} 18. Rhe1 {[%emt 0:13:00]} Bf6 {[%emt 0:04:00]} 19. g4 {[%emt 0:04:05]} g6 {[%emt 0:06:07]} 20. Bh3 {[%emt 0:06:07]} Kc7 {[%emt 0:07:11]} 21. g5 {[%emt 0:01:44]} Bg7 {[%emt 0:00:11]} 22. f5 {[%emt 0:00:50]} gxf5 {[%emt 0:00:51]} 23. Bxf5 {[%emt 0:00:30]} Ne5 $11 {[%emt 0:09:31]} 24. Nxe5 {[%emt 0:09:33]} Rxe5 {[%emt 0:04:41]} 25. Rxe5 {[%emt 0:00:38]} Bxe5 {[%emt 0:00:02]} 26. h4 {[%emt 0:00:40]} Bf4+ {[%emt 0:01:41]} 27. Kb1 {[%emt 0:00:03]} Bg3 {[%emt 0:01:04]} 28. Bxh7 {[%emt 0:08:36]} Bxh4 {[%emt 0:00:26]} 29. Rg1 {[%emt 0:02:09]} Rd7 {[%emt 0:03:55]} 30. Bf5 {[%emt 0:02:09]} Re7 {[%emt 0:02:08]} 31. a4 {[%emt 0:08:29]} Rg7 {[%emt 0:06:02]} 32. g6 {[%emt 0:00:16]} Kd6 {[%emt 0:00:22]} 33. b4 {[%emt 0:03:41]} b6 {[%emt 0:00:56]} 34. Rh1 {[%emt 0:05:19]} Bf6 {[%emt 0:00:21]} 35. b5 {[%emt 0:00:40]} c5 {[%emt 0:02:16]} 36. Rf1 {[%emt 0:06:33]} Ke5 {[%emt 0:04:10]} 37. c3 {[%emt 0:00:36]} Re7 {[%emt 0:02:04]} 38. Kc2 {[%emt 0:01:46]} Kd6 {[%emt 0:00:53]} 39. Bd3 {[%emt 0:00:24]} Bg7 {[%emt 0:00:26]} 40. Rd1 {[%emt 0:00:00]} Re3 {[%emt 0:00:00]} 41. c4 {[%emt 0:03:45]} Rg3 {[%emt 0:12:31]} 42. Be4 {[%emt 0:13:43]} Rc3+ {[%emt 0:03:57]} 43. Kb1 {[%emt 0:00:02]} Rxc4 {[%emt 0:04:23]} 44. Bxd5 {[%emt 0:01:50]} Rb4+ {[%emt 0:07:40]} 45. Kc2 {[%emt 0:00:04]} Ke5 {[%emt 0:01:07]} 46. Bc6 {[%emt 0:00:34]} Rxa4 {[%emt 0:01:13]} 47. Rf1 {[%emt 0:03:43]} Rg4 {[%emt 0:01:42]} 48. Be8 {[%emt 0:00:13]} Kd4 {[%emt 0:01:56]} 49. Rf7 {[%emt 0:01:35]} Be5 {[%emt 0:00:47]} 50. Rxa7 {[%emt 0:00:28]} Rg2+ {[%emt 0:00:28]} 51. Kd1 {[%emt 0:02:19]} Kd3 {[%emt 0:00:31]} 52. Ke1 {[%emt 0:00:15]} c4 {[%emt 0:01:01]} 53. Kf1 {[%emt 0:00:46]} Rg5 {[%emt 0:00:24]} 54. Kf2 {[%emt 0:04:21]} c3 {[%emt 0:00:17]} 55. Rd7+ {[%emt 0:03:21]} Bd4+ {[%emt 0:00:28]} 56. Kf3 {[%emt 0:00:04]} c2 {[%emt 0:00:30]} 57. Rc7 {[%emt 0:00:16]} Bc5 {[%emt 0:00:41]} 0-1

[Event "70th RUS-ch Women Higher League 2020"]
[Site "Sochi"]
[Date "2020.10.12"]
[Round "5.15"]
[White "Gorovenko, Darya"]
[Black "Garmash, Aliona"]
[Result "0-1"]
[ECO "D11"]
[WhiteElo "2120"]
[BlackElo "2093"]
[Annotator "NA"]
[PlyCount "96"]
[EventDate "2020.10.08"]
[EventType "swiss"]
[EventCountry "RUS"]
[SourceTitle "playchess.com"]
[Source "ChessBase"]
[SourceQuality "1"]
[TimeControl "40/5400+30:1800+30"]

1. d4 {[%emt 0:00:00]} d5 {[%emt 0:00:00]} 2. c4 {[%emt 0:00:00]} c6 {[%emt 0:00:00]} 3. Nf3 {[%emt 0:00:01]} Nf6 {[%emt 0:00:00]} 4. Qc2 {[%emt 0:00:19]} dxc4 {[%emt 0:00:00]} 5. e4 {[%emt 0:00:24]} Bg4 {[%emt 0:09:13]} 6. Bxc4 {[%emt 0:01:31]} e6 {[%emt 0:06:16]} 7. Be3 {[%emt 0:03:47]} Nbd7 {[%emt 0:04:08]} 8. Nbd2 {[%emt 0:02:12]} Be7 {[%emt 0:03:18]} 9. O-O {[%emt 0:01:46]} Rc8 {[%emt 0:03:11]} 10. Rfe1 {[%emt 0:03:32]} O-O {[%emt 0:03:19]} 11. Qb3 {[%emt 0:03:57]} Nb6 $11 {[%emt 0:08:50]} 12. Ne5 {[%emt 0:08:42]} Bh5 {[%emt 0:04:38]} 13. Nd3 {[%emt 0:15:42]} Nxc4 {[%emt 0:05:47]} 14. Qxc4 {[%emt 0:01:25]} Nd7 {[%emt 0:09:06]} 15. b4 {[%emt 0:11:14]} Bf6 {[%emt 0:06:13]} 16. e5 {[%emt 0:11:11]} Nb6 {[%emt 0:00:30]} 17. Qb3 {[%emt 0:00:10]} Be7 {[%emt 0:00:21]} 18. Nc5 {[%emt 0:00:58]} Qc7 {[%emt 0:00:45]} 19. Rac1 {[%emt 0:01:58]} Nd5 {[%emt 0:01:15]} 20. a3 {[%emt 0:03:46]} Rfd8 {[%emt 0:07:31]} 21. Nc4 {[%emt 0:00:33]} Bg6 {[%emt 0:01:38]} 22. Bd2 {[%emt 0:00:38]} Nb6 {[%emt 0:10:40]} 23. Na5 {[%emt 0:08:01]} Rxd4 {[%emt 0:02:56]} 24. Bc3 {[%emt 0:00:07]} Rd5 {[%emt 0:01:15]} 25. Ncxb7 {[%emt 0:08:15]} Rb8 {[%emt 0:02:02]} 26. Nc5 {[%emt 0:07:58]} Bxc5 {[%emt 0:01:22]} 27. bxc5 {[%emt 0:00:04]} Nd7 {[%emt 0:00:11]} 28. Qa4 {[%emt 0:00:13]} Rb5 {[%emt 0:00:35]} 29. Nb3 {[%emt 0:01:04]} Qb7 {[%emt 0:03:31]} 30. Bb4 {[%emt 0:01:04]} Nxe5 {[%emt 0:00:52]} 31. Rxe5 {[%emt 0:00:21]} Rxe5 {[%emt 0:00:04]} 32. Nd4 {[%emt 0:00:11]} Rbxc5 {[%emt 0:01:26]} 33. Bxc5 {[%emt 0:00:13]} Rxc5 {[%emt 0:00:04]} 34. Re1 {[%emt 0:00:18]} h6 {[%emt 0:00:36]} 35. h3 {[%emt 0:00:04]} Qd7 {[%emt 0:00:52]} 36. Nf3 {[%emt 0:00:53]} Rc2 {[%emt 0:03:17]} 37. Qa5 {[%emt 0:01:13]} Bf5 {[%emt 0:00:49]} 38. g4 {[%emt 0:00:54]} Bg6 {[%emt 0:00:27]} 39. Qb4 {[%emt 0:01:27]} Qd5 {[%emt 0:00:33]} 40. Ne5 {[%emt 0:00:00]} c5 {[%emt 0:00:00]} 41. Qb8+ {[%emt 0:00:52]} Kh7 {[%emt 0:01:49]} 42. Nxg6 {[%emt 0:00:04]} Kxg6 {[%emt 0:04:18]} 43. Qb1 {[%emt 0:00:20]} Qd2 {[%emt 0:00:25]} 44. Rf1 {[%emt 0:00:09]} c4 {[%emt 0:00:25]} 45. Qb7 {[%emt 0:00:16]} Qd3 {[%emt 0:04:23]} 46. a4 {[%emt 0:00:05]} c3 {[%emt 0:00:44]} 47. a5 {[%emt 0:00:27]} Rd2 {[%emt 0:00:28]} 48. a6 {[%emt 0:00:17]} c2 {[%emt 0:00:05]} 0-1

[Event "70th RUS-ch Women Higher League 2020"]
[Site "Sochi"]
[Date "2020.10.12"]
[Round "5.17"]
[White "Berezina, Mariya"]
[Black "Kochukova, Anna"]
[Result "0-1"]
[ECO "A28"]
[WhiteElo "1982"]
[BlackElo "2093"]
[Annotator "NA"]
[PlyCount "137"]
[EventDate "2020.10.08"]
[EventType "swiss"]
[EventCountry "RUS"]
[SourceTitle "playchess.com"]
[Source "ChessBase"]
[SourceQuality "1"]
[TimeControl "40/5400+30:1800+30"]

1. c4 {[%emt 0:00:00]} e5 {[%emt 0:00:00]} 2. Nc3 {[%emt 0:00:00]} Nf6 {[%emt 0:00:00]} 3. Nf3 {[%emt 0:00:00]} Nc6 {[%emt 0:00:00]} 4. e3 {[%emt 0:00:01]} Bb4 {[%emt 0:00:31]} 5. Qc2 {[%emt 0:00:06]} Bxc3 {[%emt 0:00:19]} 6. Qxc3 {[%emt 0:00:08]} Qe7 {[%emt 0:00:11]} 7. d4 {[%emt 0:01:07] is cutting edge theory. A28: English Opening: Four Knights Variation.} Ne4 {[%emt 0:00:39]} 8. Qd3 {[%emt 0:00:17]} exd4 {[%emt 0:00:14]} 9. Nxd4 {[%emt 0:00:13]} O-O {[%emt 0:00:59]} 10. Be2 {[%emt 0:00:39]} Qb4+ {[%emt 0:00:48]} 11. Kf1 {[%emt 0:00:41]} Qe7 {[%emt 0:01:03]} 12. f3 {[%emt 0:03:39]} f5 {[%emt 0:00:40]} 13. Qd1 {[%emt 0:18:49]} Nc5 {[%emt 0:01:02]} 14. Kf2 {[%emt 0:06:41]} d6 {[%emt 0:00:39]} 15. Re1 {[%emt 0:01:14]} Qh4+ {[%emt 0:01:44]} 16. Kg1 {[%emt 0:00:12]} Rf6 {[%emt 0:00:37] [#]} 17. Nxc6 $146 {[%emt 0:12:14]} ({Predecessor:} 17. g3 Rg6 18. Nxc6 Rxg3+ 19. hxg3 Qxg3+ 20. Kh1 Qh3+ 21. Kg1 Qg3+ 22. Kh1 Qh3+ 23. Kg1 {½-½ (23) Caruana,F (2827)-Ding,L (2804) Batumi 2018}) 17... bxc6 {[%emt 0:00:30]} 18. g3 {[%emt 0:00:16]} Rg6 $11 {[%emt 0:02:10]} 19. Bf1 {[%emt 0:00:42]} Be6 {[%emt 0:05:22]} 20. b3 {[%emt 0:00:52]} Re8 {[%emt 0:06:08]} 21. Bb2 {[%emt 0:05:20]} Qg5 {[%emt 0:03:48]} 22. Bg2 {[%emt 0:02:46]} Bd7 {[%emt 0:06:25]} 23. b4 {[%emt 0:06:38]} Nb7 {[%emt 0:01:33]} 24. f4 {[%emt 0:05:00]} Qe7 {[%emt 0:03:35]} 25. Qd2 {[%emt 0:12:43]} Nd8 {[%emt 0:05:48]} 26. Rad1 {[%emt 0:02:24]} Re6 {[%emt 0:07:06]} 27. Kf2 {[%emt 0:00:34]} Nf7 {[%emt 0:02:44]} 28. Qd4 {[%emt 0:02:02]} Nh6 {[%emt 0:00:50]} 29. h3 {[%emt 0:00:08]} a6 {[%emt 0:00:34]} 30. Rd3 {[%emt 0:05:31]} Rb8 {[%emt 0:16:14]} 31. Bc3 {[%emt 0:05:03]} Kf8 {[%emt 0:03:00]} 32. Qa7 {[%emt 0:01:07]} Qd8 {[%emt 0:00:19]} 33. Qd4 {[%emt 0:01:33]} Re7 {[%emt 0:01:07]} 34. Rd2 {[%emt 0:02:16]} Ng8 {[%emt 0:03:06]} 35. e4 {[%emt 0:00:54]} fxe4 {[%emt 0:02:30]} 36. Rxe4 {[%emt 0:00:06]} Nf6 {[%emt 0:00:22]} 37. Rxe7 {[%emt 0:00:29]} Qxe7 {[%emt 0:00:14]} 38. Re2 {[%emt 0:00:09]} Qf7 {[%emt 0:01:04]} 39. Qa7 {[%emt 0:03:26]} Re8 {[%emt 0:00:23]} 40. Rxe8+ {[%emt 0:00:00]} Bxe8 {[%emt 0:00:00]} 41. Qxa6 {[%emt 0:06:34]} Qg6 {[%emt 0:01:31]} 42. Bxf6 {[%emt 0:02:20]} Qxf6 {[%emt 0:00:44]} 43. Bxc6 {[%emt 0:04:37]} Qd4+ {[%emt 0:00:57]} 44. Kg2 {[%emt 0:02:24]} Qd2+ {[%emt 0:00:59]} 45. Kg1 {[%emt 0:00:40]} Qe1+ {[%emt 0:00:58]} 46. Kh2 {[%emt 0:00:30]} Qd2+ {[%emt 0:00:16]} 47. Bg2 {[%emt 0:01:36]} Qxb4 {[%emt 0:00:26]} 48. a3 {[%emt 0:00:34]} Qb3 {[%emt 0:01:19]} 49. Qc8 {[%emt 0:02:51]} Qxc4 {[%emt 0:03:19]} 50. Qf5+ {[%emt 0:00:06]} Bf7 {[%emt 0:01:15]} 51. Qxh7 {[%emt 0:00:20]} d5 {[%emt 0:01:57]} 52. Qf5 {[%emt 0:03:52]} d4 {[%emt 0:03:07]} 53. Be4 {[%emt 0:03:47]} g6 {[%emt 0:05:52]} 54. Qe5 {[%emt 0:03:03]} d3 {[%emt 0:00:20]} 55. Bf3 {[%emt 0:02:45]} Kg8 {[%emt 0:06:39]} 56. f5 {[%emt 0:02:01]} Qc2+ {[%emt 0:03:42]} 57. Kg1 {[%emt 0:00:44]} d2 {[%emt 0:01:02]} 58. fxg6 {[%emt 0:02:35]} d1=Q+ {[%emt 0:00:30]} 59. Bxd1 {[%emt 0:00:04]} Qxd1+ {[%emt 0:00:08]} 60. Kh2 {[%emt 0:00:08]} Qc2+ {[%emt 0:00:44]} 61. Kg1 {[%emt 0:00:09]} Bxg6 {[%emt 0:01:42]} 62. Qd5+ {[%emt 0:00:29]} Kh7 {[%emt 0:02:49]} 63. Qd7+ {[%emt 0:00:29]} Kh6 {[%emt 0:00:13]} 64. Qe6 {[%emt 0:00:28]} Qc5+ {[%emt 0:01:30]} 65. Kg2 {[%emt 0:00:10]} Qd4 {[%emt 0:01:45]} 66. Qa6 {[%emt 0:01:59]} c5 {[%emt 0:01:16]} 67. a4 {[%emt 0:01:19]} c4 {[%emt 0:00:12]} 68. a5 {[%emt 0:00:22]} c3 {[%emt 0:00:16]} 69. Kf3 0-1